Cogmind - Beta 13 @@@ ROGUE MODE // 2024.07.20 @ 12:19:35 Player: dwarfinator Result: Destroyed by P-80 Master with Gamma Rifle Performance ------------- Evolutions (9) 4500 Regions Visited (14) 2800 Robots Destroyed (1) 5 Value Destroyed (24) 24 Prototype IDs (2) 40 Alien Tech Used (0) 0 Bonus (6711) 6711 TOTAL SCORE: 14080 Bonus ------- Pacifist 5711 Entered DSFs 1000 Cogmind --------- Core Integrity 0/1600 Matter 7/300 Energy 58/100 System Corruption 7% Temperature Cool (0) Movement Core (50) Location -1/Access Parts ------- > --- POWER (2) -------- (None) > --- PROPULSION (11) -- Centrium Leg > --- UTILITY (10) ----- Machine Analyzer Advanced Terrain Scan Processor Advanced Terrain Scan Processor Improved Hacking Suite > --- WEAPON (2) ------- (None) > --- INVENTORY (5) ---- Advanced Medium Treads Centrium Leg Cooled Impulse Thruster Nova Cannon Peak State ------------ > --- POWER ------------ (None) > --- PROPULSION ------- Cesium-ion Thruster Field Propulsion Drive Field Propulsion Array > --- UTILITY ---------- Machine Analyzer Enhanced Optical Array Long-range Terrain Scanner Advanced Terrain Scan Processor Advanced Terrain Scan Processor Hacking Suite System Shield System Shield > --- WEAPON ----------- Impact Mace > --- INVENTORY -------- Cesium-ion Thruster Field Propulsion Array Improved Terrain Scanner Shock Rifle [Rating: 62] Favorites ----------- Power Heavy Ion Engine Engine Heavy Ion Engine Propulsion VTOL Module Treads Advanced Medium Treads Leg Centrium Leg Flight Unit VTOL Module Utility Advanced Terrain Scan Processor Device Improved Terrain Scanner Processor Advanced Terrain Scan Processor Hackware System Shield Weapon Impact Mace Energy Cannon Nova Cannon Impact Weapon Impact Mace Build | -11 -10 -9 -8 -7 -7 -6 -6 -6 -5 -4 -3 -3 -2 -1 ------- Run | Yrd Mat Mat Mat Fac DSF Fac Low Low Fac Fac Res DSF Res Acc Slots Evolved 18 | . . 2 2 2 . 2 . . 2 2 2 . 2 2 Power 1 | . . . . 1 . . . . . . . . . . Propulsion 9 | . . 2 2 1 . . . . . . . . 2 2 Utility 8 | . . . . . . 2 . . 2 2 2 . . . Weapon . | . . . . . . . . . . . . . . . Parts Attached 34 | . . 1 2 . 5 4 1 . 3 6 1 1 3 7 Power 1 | . . . . . 1 . . . . . . . . . Engine 1 | . . . . . 1 . . . . . . . . . Core . | . . . . . . . . . . . . . . . Reactor . | . . . . . . . . . . . . . . . Propulsion 13 | . . . 1 . 3 . 1 . . 1 . 1 2 4 Treads 2 | . . . . . . . . . . . . . 1 1 Leg 2 | . . . . . . . . . . . . . . 2 Wheel . | . . . . . . . . . . . . . . . Hover . | . . . . . . . . . . . . . . . Flight 9 | . . . 1 . 3 . 1 . . 1 . 1 1 1 Utility 17 | . . 1 . . 1 3 . . 3 5 1 . 1 2 Device 5 | . . 1 . . . . . . 1 . 1 . 1 1 Storage . | . . . . . . . . . . . . . . . Processor 7 | . . . . . 1 1 . . 2 3 . . . . Hackware 5 | . . . . . . 2 . . . 2 . . . 1 Protection . | . . . . . . . . . . . . . . . Artifact . | . . . . . . . . . . . . . . . Weapon 3 | . . . 1 . . 1 . . . . . . . 1 Energy Gun . | . . . . . . . . . . . . . . . Energy Cannon 1 | . . . . . . . . . . . . . . 1 Ballistic Gun . | . . . . . . . . . . . . . . . Ballistic Cannon . | . . . . . . . . . . . . . . . Launcher . | . . . . . . . . . . . . . . . Special Weapon . | . . . . . . . . . . . . . . . Impact Weapon 2 | . . . 1 . . 1 . . . . . . . . Slashing Weapon . | . . . . . . . . . . . . . . . Piercing Weapon . | . . . . . . . . . . . . . . . Special Melee Weapon . | . . . . . . . . . . . . . . . Unidentified Prototypes 2 | . . . 1 . 1 . . . . . . . . . Parts Lost 18 | . . 1 . . . 1 1 . . 1 . . 6 8 Power . | . . . . . . . . . . . . . . . Propulsion 9 | . . . . . . 1 . . . 1 . . 4 3 Utility 8 | . . 1 . . . . 1 . . . . . 2 4 Weapon 1 | . . . . . . . . . . . . . . 1 Highest Loss Streak 6 | . . 1 . . . 1 1 . . 1 . . 6 6 To Critical Strikes . | . . . . . . . . . . . . . . . Average Slot Usage (%) 35 | . . 6 9 15 36 53 43 40 47 57 57 54 47 33 Flight 6 | . . . . 7 30 22 12 13 11 10 9 11 8 2 Device 2 | . . 6 . . . . . . 5 5 9 4 3 . Processor 13 | . . . . . 1 13 13 13 18 29 19 19 17 15 Hackware 7 | . . . . . . 13 11 6 5 5 14 14 13 10 Impact Weapon 3 | . . . 9 7 3 3 6 6 5 5 4 4 4 2 Naked Turns 103 | . 42 58 3 . . . . . . . . . . . Heaviest Build 9 | . . 1 3 3 3 3 3 3 4 4 5 5 5 9 Greatest Support 30 | 3 3 3 4 4 12 12 9 9 9 9 5 12 15 30 Greatest Overweight (x) . | . . . . . . . . . . . . . . . Average Overweight (x) . | . . . . . . . . . . . . . . . Largest Inventory Capacity 5 | 5 5 5 5 5 5 5 5 5 5 5 5 5 5 5 Average Capacity 5 | 5 5 5 5 5 5 5 5 5 5 5 5 5 5 5 Most Carried 5 | . . . 5 5 5 5 5 5 5 5 3 5 5 5 Average Carried 3 | . . . 1 5 3 3 4 5 4 4 2 4 3 3 Final Capacity 5 | 5 5 5 5 5 5 5 5 5 5 5 5 5 5 5 Final Carried 5 | . . . 5 5 5 5 5 5 5 3 3 5 3 4 Class Distribution -------------------- 28% | Hacker-Mutant 25% | Mutant 17% | Hacker-Scout 10% | Hacker-Sprinter 10% | Scout 7% | Sprinter Dominant Class ---------------- Mutant | -10/Materials Mutant | -9/Materials Mutant | -8/Materials Mutant | -7/Factory Mutant | -7/DSF Hacker-Sprinter | -6/Factory Sprinter | -6/Lower Caves Sprinter | -6/Lower Caves Scout | -5/Factory Scout | -4/Factory Scout | -3/Research Scout | -3/DSF Hacker-Scout | -2/Research Hacker-Mutant | -1/Access Resources | -11 -10 -9 -8 -7 -7 -6 -6 -6 -5 -4 -3 -3 -2 -1 ----------- Run | Yrd Mat Mat Mat Fac DSF Fac Low Low Fac Fac Res DSF Res Acc Matter Collected 158 | 80 . . 24 . . . 16 . . . . . 25 13 Remotely . | . . . . . . . . . . . . . . . Salvage Created 25 | . . . . . . . . . . . . . 25 . Parts . | . . . . . . . . . . . . . . . Haulers Intercepted . | . . . . . . . . . . . . . . . Recyclers Shooed . | . . . . . . . . . . . . . . . Parts Field Recycled . | . . . . . . . . . . . . . . . Retrieved Matter . | . . . . . . . . . . . . . . . Parts Self-Destructed 2 | . . . . . . . 2 . . . . . . . Prevented . | . . . . . . . . . . . . . . . Kills | -11 -10 -9 -8 -7 -7 -6 -6 -6 -5 -4 -3 -3 -2 -1 ------- Run | Yrd Mat Mat Mat Fac DSF Fac Low Low Fac Fac Res DSF Res Acc Combat Hostiles Destroyed . | . . . . . . . . . . . . . . . Classes Destroyed 1 | . . . . . . . . . . . . . 1 . Operator 1 | . . . . . . . . . . . . . 1 . Best Kill Streak 1 | . . . . . . . . . . . . . 1 . Combat Bots Only . | . . . . . . . . . . . . . . . Max Kills in Single Turn 1 | . . . . . . . . . . . . . 1 . Gunslinging . | . . . . . . . . . . . . . . . Exploded . | . . . . . . . . . . . . . . . Melee . | . . . . . . . . . . . . . . . Uniques/NPCs Destroyed . | . . . . . . . . . . . . . . . Combat | -11 -10 -9 -8 -7 -7 -6 -6 -6 -5 -4 -3 -3 -2 -1 -------- Run | Yrd Mat Mat Mat Fac DSF Fac Low Low Fac Fac Res DSF Res Acc Hostile Shots Fired 431 | . 40 36 13 . 1 9 21 . 12 14 . 1 56 228 Missed 206 | . 16 16 5 . 1 6 12 . 9 9 . 1 33 98 Damage Taken 4925 | 2 223 253 112 . . 82 141 . 121 109 . . 536 3346 Core 2618 | 2 223 224 112 . . 37 96 . 103 43 . . 164 1614 Absorbed by Shields . | . . . . . . . . . . . . . . . Core Remaining (%) 78 | 99 10 44 79 . 100 . . 84 89 96 . 100 88 . Volleys Fired 1 | . . . . . . . . . . . . . . 1 Largest 1 | . . . . . . . . . . . . . . 1 Hottest 113 | . . . . . . . . . . . . . . 113 Shots Fired 1 | . . . . . . . . . . . . . . 1 Gun . | . . . . . . . . . . . . . . . Cannon 1 | . . . . . . . . . . . . . . 1 Launcher . | . . . . . . . . . . . . . . . Special . | . . . . . . . . . . . . . . . Kinetic . | . . . . . . . . . . . . . . . Thermal 1 | . . . . . . . . . . . . . . 1 Explosive . | . . . . . . . . . . . . . . . Electromagnetic . | . . . . . . . . . . . . . . . Robot Hit Streak . | . . . . . . . . . . . . . . . Robot Miss Streak . | . . . . . . . . . . . . . . . Penetration Max . | . . . . . . . . . . . . . . . Secondary Targets . | . . . . . . . . . . . . . . . Shots Hit Robots 2 | . . . 1 . . . . . . . . . 1 . Core Hits . | . . . . . . . . . . . . . . . Critical Kills . | . . . . . . . . . . . . . . . Critical Parts Destroyed . | . . . . . . . . . . . . . . . Critical Strikes . | . . . . . . . . . . . . . . . Melee Attacks 15 | . . . 1 . . 2 . . . 1 . . 4 7 Impact 15 | . . . 1 . . 2 . . . 1 . . 4 7 Slashing . | . . . . . . . . . . . . . . . Piercing . | . . . . . . . . . . . . . . . Sneak Attacks . | . . . . . . . . . . . . . . . Combat Hostiles . | . . . . . . . . . . . . . . . Follow-up Attacks . | . . . . . . . . . . . . . . . Damage Inflicted 117 | 5 16 . 22 . . . . . . 2 . . 63 9 Guns . | . . . . . . . . . . . . . . . Cannons . | . . . . . . . . . . . . . . . Explosions . | . . . . . . . . . . . . . . . Melee 79 | . . . 21 . . . . . . . . . 58 . Ramming 38 | 5 16 . 1 . . . . . . 2 . . 5 9 Kinetic . | . . . . . . . . . . . . . . . Thermal . | . . . . . . . . . . . . . . . Explosive . | . . . . . . . . . . . . . . . Electromagnetic . | . . . . . . . . . . . . . . . Impact 79 | . . . 21 . . . . . . . . . 58 . Slashing . | . . . . . . . . . . . . . . . Piercing . | . . . . . . . . . . . . . . . Highest Corruption 6 | . 1 1 . . . 3 3 3 . . . . 2 6 Average Corruption 1 | . 1 1 . . . 2 3 3 . . . . 1 1 Corruption Purged . | . . . . . . . . . . . . . . . Corruption Blocked . | . . . . . . . . . . . . . . . Effects 11 | . . 1 . . . 1 2 1 . . . . 1 5 Message Errors 3 | . . 1 . . . . 1 1 . . . . . . Matter Fused 3 | . . . . . . . 1 . . . . . . 2 Heat Flow Errors 2 | . . . . . . . . . . . . . 1 1 Parts Rejected 1 | . . . . . . 1 . . . . . . . . Data Loss (minor) 2 | . . . . . . . . . . . . . . 2 Overload Shots . | . . . . . . . . . . . . . . . Overflow Damage 38 | . . . . . . . . . . . . . 38 . Projectiles . | . . . . . . . . . . . . . . . Explosions . | . . . . . . . . . . . . . . . Melee 38 | . . . . . . . . . . . . . 38 . Knockbacks . | . . . . . . . . . . . . . . . Impact . | . . . . . . . . . . . . . . . Kinetic . | . . . . . . . . . . . . . . . Secondary . | . . . . . . . . . . . . . . . Self-Inflicted Damage 17 | 2 8 . . . . . . . . 1 . . 2 4 Shots . | . . . . . . . . . . . . . . . Rammed 6 | 1 1 . 1 . . . . . . 1 . . 1 1 Targets Rammed 6 | 1 1 . 1 . . . . . . 1 . . 1 1 Kicked . | . . . . . . . . . . . . . . . Crushed . | . . . . . . . . . . . . . . . Highest Temperature 171 | . . . . . . . . . . . . . 171 112 Average Temperature 66 | . . . . . . . . . . . . . 98 41 Received Heat Transfer 405 | . 24 156 63 . . 27 . . 9 18 . . 45 63 Siege Activations . | . . . . . . . . . . . . . . . Robots Corrupted . | . . . . . . . . . . . . . . . Combat Hostiles . | . . . . . . . . . . . . . . . Parts Fried 2 | . . . . . . . . . . . . . 2 . Impact Corruptions 2 | . . . . . . . . . . . . . 2 . Robots Melted . | . . . . . . . . . . . . . . . Combat Hostiles . | . . . . . . . . . . . . . . . Parts Melted . | . . . . . . . . . . . . . . . Heat Transferred . | . . . . . . . . . . . . . . . Parts Sabotaged . | . . . . . . . . . . . . . . . Parts Stolen . | . . . . . . . . . . . . . . . Parts Stripped . | . . . . . . . . . . . . . . . Power Chain Reactions . | . . . . . . . . . . . . . . . Alert | -11 -10 -9 -8 -7 -7 -6 -6 -6 -5 -4 -3 -3 -2 -1 ------- Run | Yrd Mat Mat Mat Fac DSF Fac Low Low Fac Fac Res DSF Res Acc Peak Influence 567 | . 25 138 102 46 50 47 . . 179 216 120 93 365 567 Initial 218 | . . 10 57 46 35 25 . . 12 87 120 93 51 218 Average 186 | . 14 62 69 46 37 38 . . 48 114 120 93 201 354 Maximum Alert Level 2 | . . . . . . . . . . 1 . . 1 2 Low Security (%) 56 | 100 100 100 100 100 100 100 . . 100 97 100 100 45 . Level 1 33 | . . . . . . . . . . 2 . . 54 71 Level 2 9 | . . . . . . . . . . . . . . 28 Level 3 . | . . . . . . . . . . . . . . . Level 4 . | . . . . . . . . . . . . . . . Level 5 . | . . . . . . . . . . . . . . . High Security . | . . . . . . . . . . . . . . . Max Security . | . . . . . . . . . . . . . . . Squads Dispatched 18 | . 1 5 1 . . . . . 3 1 . . 2 5 Investigation 10 | . . 4 1 . . . . . 1 . . . 2 2 Extermination 1 | . . . . . . . . . . . . . . 1 Reinforcement 7 | . 1 1 . . . . . . 2 1 . . . 2 Assault . | . . . . . . . . . . . . . . . Garrison . | . . . . . . . . . . . . . . . Intercept . | . . . . . . . . . . . . . . . Searches Triggered . | . . . . . . . . . . . . . . . Construction Impeded . | . . . . . . . . . . . . . . . Haulers Reinforced . | . . . . . . . . . . . . . . . Active Scanning Responses . | . . . . . . . . . . . . . . . Cargo Convoy Interrupts . | . . . . . . . . . . . . . . . Stealth | -11 -10 -9 -8 -7 -7 -6 -6 -6 -5 -4 -3 -3 -2 -1 --------- Run | Yrd Mat Mat Mat Fac DSF Fac Low Low Fac Fac Res DSF Res Acc Distress Signals 3 | . . 2 . . . . . . . . . . . 1 Communications Jammed . | . . . . . . . . . . . . . . . Distress Signals . | . . . . . . . . . . . . . . . Times Spotted 134 | . 10 22 4 . . 9 5 . 15 10 . 1 22 36 Peak Tracking Total 18 | . 9 18 4 . 1 9 4 . 13 6 . 1 10 16 Tactical Retreats 22 | . . 2 1 . 1 . 1 . 1 1 . . 7 8 Traps | -11 -10 -9 -8 -7 -7 -6 -6 -6 -5 -4 -3 -3 -2 -1 ------- Run | Yrd Mat Mat Mat Fac DSF Fac Low Low Fac Fac Res DSF Res Acc Traps Triggered 6 | . 1 1 1 . 1 2 . . . . . . . . Indirectly . | . . . . . . . . . . . . . . . Trap Hack Attempts . | . . . . . . . . . . . . . . . Triggered . | . . . . . . . . . . . . . . . Disarmed . | . . . . . . . . . . . . . . . Reprogrammed . | . . . . . . . . . . . . . . . Reused . | . . . . . . . . . . . . . . . Traps Extracted . | . . . . . . . . . . . . . . . Installed . | . . . . . . . . . . . . . . . Triggered . | . . . . . . . . . . . . . . . Machines | -11 -10 -9 -8 -7 -7 -6 -6 -6 -5 -4 -3 -3 -2 -1 ---------- Run | Yrd Mat Mat Mat Fac DSF Fac Low Low Fac Fac Res DSF Res Acc Machines Disabled . | . . . . . . . . . . . . . . . Max in Single Turn . | . . . . . . . . . . . . . . . Machines Repaired . | . . . . . . . . . . . . . . . Machines Dismantled . | . . . . . . . . . . . . . . . Machines Sabotaged . | . . . . . . . . . . . . . . . Overloaded Fab Kills . | . . . . . . . . . . . . . . . Hacking | -11 -10 -9 -8 -7 -7 -6 -6 -6 -5 -4 -3 -3 -2 -1 --------- Run | Yrd Mat Mat Mat Fac DSF Fac Low Low Fac Fac Res DSF Res Acc Machines Accessed 27 | . 2 5 2 1 . 2 . . 5 2 1 . 5 2 Terminals 26 | . 2 5 2 1 . 2 . . 5 2 1 . 5 1 Fabricators 1 | . . . . . . . . . . . . . . 1 Repair Stations . | . . . . . . . . . . . . . . . Recycling Units . | . . . . . . . . . . . . . . . Scanalyzers . | . . . . . . . . . . . . . . . Garrison Access . | . . . . . . . . . . . . . . . Total Hacks 101 | . 10 18 8 5 . 5 . . 24 7 2 . 16 6 Successful 34 | . 6 5 2 1 . 3 . . 8 4 1 . 4 . Failed 67 | . 4 13 6 4 . 2 . . 16 3 1 . 12 6 Catastrophic 14 | . . 3 2 . . . . . 3 . . . 4 2 Database Lockouts . | . . . . . . . . . . . . . . . Manual 70 | . 8 13 6 . . 3 . . 20 5 . . 9 6 Terminals 98 | . 10 18 8 5 . 5 . . 24 7 2 . 16 3 Fabricators 3 | . . . . . . . . . . . . . . 3 Repair Stations . | . . . . . . . . . . . . . . . Recycling Units . | . . . . . . . . . . . . . . . Scanalyzers . | . . . . . . . . . . . . . . . Garrison Access . | . . . . . . . . . . . . . . . Terminal Hacks 21 | . 4 3 1 1 . 2 . . 5 2 1 . 2 . Open DSF 4 | . . . . 1 . 1 . . . . 1 . 1 . Level Access Points 3 | . 1 1 . . . . . . 1 . . . . . Branch Access Points 2 | . . 1 . . . . . . 1 . . . . . Emergency Access Points 1 | . . . . . . . . . 1 . . . . . Locate Traps 1 | . 1 . . . . . . . . . . . . . Maintenance Status 1 | . 1 . . . . . . . . . . . . . Zone Layout 9 | . 1 1 1 . . 1 . . 2 2 . . 1 . Fabricator Hacks . | . . . . . . . . . . . . . . . Repair Station Hacks . | . . . . . . . . . . . . . . . Recycling Unit Hacks . | . . . . . . . . . . . . . . . Scanalyzer . | . . . . . . . . . . . . . . . Garrison Access Hacks . | . . . . . . . . . . . . . . . Unauthorized Hacks 13 | . 2 2 1 . . 1 . . 3 2 . . 2 . Terminals 13 | . 2 2 1 . . 1 . . 3 2 . . 2 . Botnet 13 | . 2 2 1 . . 1 . . 3 2 . . 2 . Fabricators . | . . . . . . . . . . . . . . . Repair Stations . | . . . . . . . . . . . . . . . Recycling Units . | . . . . . . . . . . . . . . . Scanalyzers . | . . . . . . . . . . . . . . . Garrison Access . | . . . . . . . . . . . . . . . Data Cores Recovered 1 | . . . . . . . . . . . . . 1 . Used 1 | . . . . . . . . . . . . . 1 . Hacking Detections 22 | . 1 4 2 1 . 1 . . 5 2 . . 4 2 Full Trace Events 10 | . 1 3 1 . . . . . 1 . . . 2 2 Feedback Events 2 | . . 1 . . . . . . . . . . . 1 Corruption 1 | . . 1 . . . . . . . . . . . . Hackware Fried 1 | . . . . . . . . . . . . . . 1 Feedback Blocked . | . . . . . . . . . . . . . . . Robot Schematics Acquired . | . . . . . . . . . . . . . . . Robots Built . | . . . . . . . . . . . . . . . Authchips . | . . . . . . . . . . . . . . . Time . | . . . . . . . . . . . . . . . Total Robot Build Rating . | . . . . . . . . . . . . . . . Part Schematics Acquired . | . . . . . . . . . . . . . . . Parts Built . | . . . . . . . . . . . . . . . Authchips . | . . . . . . . . . . . . . . . Time . | . . . . . . . . . . . . . . . Total Part Build Rating . | . . . . . . . . . . . . . . . Parts Repaired . | . . . . . . . . . . . . . . . Time . | . . . . . . . . . . . . . . . Parts Recycled . | . . . . . . . . . . . . . . . Recycled Matter . | . . . . . . . . . . . . . . . Retrieved Matter . | . . . . . . . . . . . . . . . Retrieved Components . | . . . . . . . . . . . . . . . Parts Scanalyzed . | . . . . . . . . . . . . . . . Part Schematics Acquired . | . . . . . . . . . . . . . . . Parts Damaged . | . . . . . . . . . . . . . . . Bothacking | -11 -10 -9 -8 -7 -7 -6 -6 -6 -5 -4 -3 -3 -2 -1 ------------ Run | Yrd Mat Mat Mat Fac DSF Fac Low Low Fac Fac Res DSF Res Acc Used RIF Installer . | . . . . . . . . . . . . . . . Robots Hacked . | . . . . . . . . . . . . . . . Non-combat . | . . . . . . . . . . . . . . . Combat . | . . . . . . . . . . . . . . . Robot Hacks Applied . | . . . . . . . . . . . . . . . Relay Couplers Released . | . . . . . . . . . . . . . . . Fabnet Peak Effective % . | . . . . . . . . . . . . . . . Robots Rewired . | . . . . . . . . . . . . . . . Allies Hacked . | . . . . . . . . . . . . . . . Hacks Repelled . | . . . . . . . . . . . . . . . Allies | -11 -10 -9 -8 -7 -7 -6 -6 -6 -5 -4 -3 -3 -2 -1 -------- Run | Yrd Mat Mat Mat Fac DSF Fac Low Low Fac Fac Res DSF Res Acc Total Allies . | . . . . . . . . . . . . . . . Largest Group . | . . . . . . . . . . . . . . . Highest-Rated Group . | . . . . . . . . . . . . . . . Highest-Rated Ally . | . . . . . . . . . . . . . . . Total Orders 4 | . . . . . . . . . . . . . . 4 STAY 1 | . . . . . . . . . . . . . . 1 EXPLORE 2 | . . . . . . . . . . . . . . 2 RETURN 1 | . . . . . . . . . . . . . . 1 Ally Attacks . | . . . . . . . . . . . . . . . Total Damage . | . . . . . . . . . . . . . . . Kills . | . . . . . . . . . . . . . . . Allies Corrupted . | . . . . . . . . . . . . . . . Allies Melted . | . . . . . . . . . . . . . . . Intel | -11 -10 -9 -8 -7 -7 -6 -6 -6 -5 -4 -3 -3 -2 -1 ------- Run | Yrd Mat Mat Mat Fac DSF Fac Low Low Fac Fac Res DSF Res Acc Robot Analysis Total . | . . . . . . . . . . . . . . . Derelict Logs Recovered 2 | . . . . . . . 2 . . . . . . . Drone Launches 2 | . . . . . . . . . . . . . . 2 Drone Recoveries 1 | . . . . . . . . . . . . . . 1 Exploration | -11 -10 -9 -8 -7 -7 -6 -6 -6 -5 -4 -3 -3 -2 -1 ------------- Run | Yrd Mat Mat Mat Fac DSF Fac Low Low Fac Fac Res DSF Res Acc Turns Passed 1207 | 9 42 123 63 2 40 56 69 12 85 117 10 15 171 393 Spaces Moved 2625 | 17 81 243 107 5 68 146 197 36 244 289 24 30 413 725 Core 648 | 17 81 243 92 . . . . . . . . . 48 167 Treads 15 | . . . . . . . . . . . . . . 15 Legs 33 | . . . . . . . . . . . . . . 33 Wheels . | . . . . . . . . . . . . . . . Hover . | . . . . . . . . . . . . . . . Flight 1929 | . . . 15 5 68 146 197 36 244 289 24 30 365 510 Fastest Speed 29 | 50 50 50 35 35 29 29 32 32 32 32 35 35 35 40 Average Speed 40 | 50 50 50 47 35 32 29 32 32 32 34 35 36 37 48 Slowest Speed 145 | 50 50 50 50 35 35 32 35 32 35 35 35 37 50 145 Overloaded Moves . | . . . . . . . . . . . . . . . Propulsion Burnouts . | . . . . . . . . . . . . . . . Robots Hopped 27 | . . . . . . 3 2 . 5 4 . . 5 8 Cave-ins Triggered . | . . . . . . . . . . . . . . . Exploration Rate (%) 25 | 3 25 32 14 . 74 7 55 13 8 15 1 48 24 32 Regions Visited 14 Branch Regions 2 Pre-discovered Areas . | . . . . . . . . . . . . . . . Known Exits Taken 5 | . 1 1 . 1 . . . . 1 . 1 . . . Unknown Exits Taken 7 | 1 . . 1 . . 1 1 1 . 1 . . 1 . Scrap Searched . | . . . . . . . . . . . . . . . Spaces Dug 14 | . . . . . . 2 . . . 1 . . 3 8 Terrain Destroyed 14 | . . . . . . 2 . . . 1 . . 3 8 Melee 13 | . . . . . . 2 . . . 1 . . 3 7 Projectile 1 | . . . . . . . . . . . . . . 1 AOE . | . . . . . . . . . . . . . . . Terrain Rammed . | . . . . . . . . . . . . . . . Walls Destroyed . | . . . . . . . . . . . . . . . Machines Disabled . | . . . . . . . . . . . . . . . Actions | -11 -10 -9 -8 -7 -7 -6 -6 -6 -5 -4 -3 -3 -2 -1 --------- Run | Yrd Mat Mat Mat Fac DSF Fac Low Low Fac Fac Res DSF Res Acc Total 2699 | 17 81 243 115 4 85 151 200 35 242 301 25 33 418 749 Wait 6 | . . . . . . . . . . . . . . 6 Move 2563 | 16 80 242 106 4 67 140 193 35 235 282 23 29 402 709 Hop 22 | . . . . . . 2 1 . 3 3 . . 5 8 Pick Up 27 | . . . 5 . 3 3 2 . 1 4 . 2 2 5 Fast Attach 14 | . . 1 2 . 1 1 1 . 2 2 . 1 1 2 Attach 20 | . . . . . 4 3 . . 1 4 1 . 2 5 Detach 8 | . . . . . 1 . . . . 3 1 . . 3 Swap . | . . . . . . . . . . . . . . . Drop 10 | . . . . . 1 . 3 . . 2 . 1 1 2 Fire 1 | . . . . . . . . . . . . . . 1 Melee 15 | . . . 1 . . 2 . . . 1 . . 4 7 Ram 5 | 1 1 . 1 . . . . . . . . . 1 1 Kick . | . . . . . . . . . . . . . . . Crush . | . . . . . . . . . . . . . . . Escape Stasis 8 | . . . . . 8 . . . . . . . . . Rewire . | . . . . . . . . . . . . . . . Trap . | . . . . . . . . . . . . . . . Miscellaneous . | . . . . . . . . . . . . . . . Route ------- -11/Scrapyard -10/Materials (discovered 3 exits: *Mat x3) -9/Materials (discovered 6 exits: *Mat x3 / Min / Sto x2) -8/Materials -7/Factory -7/DSF -6/Factory -6/Lower Caves -6/Lower Caves -5/Factory (discovered 8 exits: *Fac x4 / Upp x2 / *Ext x2) -4/Factory -3/Research -3/DSF -2/Research -1/Access History --------- Turn | Location | Event 3 | -11/Scrapyard | Discovered new exit (range 15) 10 | -11/Scrapyard | Entered Materials 35 | -10/Materials | Identified exit to Materials 44 | -10/Materials | Core integrity fell below 50% 50 | -10/Materials | Core integrity fell below 20% 52 | -10/Materials | Entered another Materials area 52 | -9/Materials | Evolved 2 slots: Propulsion x2 90 | -9/Materials | Identified exit to Mines 90 | -9/Materials | Identified exit to Storage 119 | -9/Materials | Identified exit to Materials 162 | -9/Materials | Core integrity fell below 50% 175 | -9/Materials | Entered another Materials area 175 | -8/Materials | Evolved 2 slots: Propulsion x2 219 | -8/Materials | Met 7R-MNS 219 | -8/Materials | Discovered new exit (range 9) 238 | -8/Materials | Entered Factory 238 | -7/Factory | Evolved 2 slots: Power x1, Propulsion x1 240 | -7/Factory | Identified exit to DSF 240 | -7/Factory | Entered DSF 271 | -7/DSF | Additional patrols routed to DSF 274 | -7/DSF | Discovered new exit (range 12) 280 | -7/DSF | Entered Factory 280 | -6/Factory | Evolved 2 slots: Utility x2 334 | -6/Factory | Discovered new exit (range 8) 336 | -6/Factory | Entered Lower Caves 342 | -6/Lower Caves | Learned Factory terminal intel 402 | -6/Lower Caves | Discovered new exit (range 12) 405 | -6/Lower Caves | Entered another Lower Caves area 414 | -6/Lower Caves | Discovered new exit (range 9) 417 | -6/Lower Caves | Entered Factory 417 | -5/Factory | Evolved 2 slots: Utility x2 418 | -5/Factory | Identified exit to Extension 419 | -5/Factory | Loaded intel: 28 terminal locations 457 | -5/Factory | Identified exit to Upper Caves 491 | -5/Factory | Identified exit to Factory 502 | -5/Factory | Entered another Factory area 502 | -4/Factory | Evolved 2 slots: Utility x2 612 | -4/Factory | Discovered new exit (range 17) 619 | -4/Factory | Entered Research 619 | -3/Research | Evolved 2 slots: Utility x2 629 | -3/Research | Identified exit to DSF 629 | -3/Research | Entered DSF 636 | -3/DSF | Discovered new exit (range 20) 644 | -3/DSF | Entered Research 644 | -2/Research | Evolved 2 slots: Propulsion x2 727 | -2/Research | Spotted B-90 Cyclops 753 | -2/Research | Spotted B-90 Cyclops 809 | -2/Research | Discovered new exit (range 16) 814 | -2/Research | Lost 6 parts (4n2u) 815 | -2/Research | Entered Access 815 | -1/Access | Evolved 2 slots: Propulsion x2 1071 | -1/Access | Build established: Hacker-Mutant 1110 | -1/Access | Core integrity fell below 50% 1122 | -1/Access | Spotted B-99 Colossus 1124 | -1/Access | System Shield fried by hacking feedback 1160 | -1/Access | Core integrity fell below 20% 1169 | -1/Access | Lost 6 parts (2n3u1w) 1208 | -1/Access | Destroyed by P-80 Master with Gamma Rifle Last Messages --------------- 01135_ Penetrated by Slug. 01135_ Slug penetrates Wall. 01136_ Acquired Centrium Leg. 01138_ Biometal Heavy Treads destroyed. 01138_ Slug penetrates Wall. 01138_ Penetrated by Slug. 01138_ Slug penetrates Wall. 01143_ Penetrated by Slug. 01148_ System corrupted: Matter fused (-7). 01148_ Penetrated by Slug. 01148_ Slug penetrates Wall. 01148_ Penetrated by Slug. 01150_ Acquired 8 matter. 01152_ Slug penetrates Wall. 01152_ Penetrated by Slug. 01153_ Anti-Orbital Battery disabled. 01190_ Drone sends a signal. 01194_ Slammed into P-80 Master. 01205_ Wave Collapse Detector explodes. 01205_ Centrium Leg destroyed. Map ----- +----------------------------------------------------+ | ?????# ????????????????"???? #????????????? | | ?????# ????????####??????????? #????????????? | | ?????# ??????????# ##?????????? #????????????? | | +######+############" "######+#### ########?????? | | ## #?????? | | ## #?????? | | % ## #?????? | | % """## ####### | | ! !] """## # !# | | "###"########### !] ""##! # | | ##?###?????????#!]] F""## / | | #??????????????# % ""## # | | #??????????????# % sss # # # | | #??????????????# g % s # ! ## % ## | | #??????????????+ + ## #? | | #??????????????#A " !! # ## #? | | #??????????????# """ s !! ######## #? | | #??????????????# """ ! #???## ## | | #????#+######### " ##### # | | #????# # | | #????# + | | #????+ # | | #?????#######+## pp ##### # | | #?????# " ####p ## #???### ### | | #?????# """ #?## ##########?????# #?? | | ####### """ #?# @ #?????????????#%#?? | | ## " #?# #?????????????# #?? | | + #?# ] #?????????????# #?? | | ## #?# #?????????????#%### | | ## ! #?# #?????????????# | | #### ## #?## ##?????????????##### | | ???# / ! #??# #?????????????????# | | ???# ###########??# ##?????????????????# | | ???# #????????????##;#######??????????????????# | | ???#####?????????????##?????????????????????????# | | ????????????????????????????????????????????????# | | ????????????????????????????????????????????????# | | ????????????????????????????????????????????????# | | ????????????????????????????????????????????????# | | ????????????????????????????????????????????????# | | ????????????????????????????????????????????????## | | ?????????????????????????????????????????????????? | | ?????????????????????????????????????????????????? | | ?????????????????????????????????????????????????? | | ?????????????????????????????????????????????????? | | ?????????????????????????????????????????????????? | | ?????????????????????????????????????????????????? | | ?????????????????????????????????????????????????? | | ??????????????????????????????????????????######## | | ??????????????????????????????????????????# " | +----------------------------------------------------+ Best States ------------- Heat Dissipation 52 Energy Generation 5 Energy Capacity 100 Matter Stores 197 Matter Capacity 300 Sight Range 22 Robot Scan Range 14 Terrain Scan Range 24 Terrain Scan Density 710 Evasion (%) 64 Recoil Reduction 1 Offensive Hacking 22 Defensive Hacking 20 Item Schematics ----------------- None Robot Schematics ------------------ None Fabricated ------------ Nothing Alien Tech Used ----------------- None Achievements -------------- None Challenges ------------ None Game ------ Seed SlugRagnarokSource Manual? 0 Play Time 01:46:03 Cumulative 108.4 hours Start 2024.07.19 @ 16:59:29 End 2024.07.20 @ 12:19:35 Sessions 3 Manual Loads 0 Difficulty Rogue Special Mode None Game No. 19 Rogue 16 Adventurer 3 Explorer 0 Win Type - Total 4 Types 4/0/0/0/0/0/0/0/0 Lore% 50 Gallery% 70 Achievement% 58 Wizard Run 0 Options --------- Layout 0 ASCII 0 Keyboard 0 Movement Numpad Keybinds 0 Fullscreen 1 Font 18/SmallcapsGlow Map View 76x50 Zoom Use 0% Tactical HUD 1 Map Filters NONE Filters NONE Steam 1 RUN: b4cde15d-ed14-43f9-acb2-3302a2c71dad